[Event "French Top 16-A 2024"]
[Site "Chartres"]
[Date "2024.06.01"]
[Round "3.11"]
[White "Amin, Bassem"]
[Black "Esipenko, Andrey"]
[Result "1/2-1/2"]
[ECO "A04"]
[WhiteElo "2683"]
[BlackElo "2704"]
[Annotator "TA"]
[PlyCount "79"]
[EventDate "2024.06.01"]
[EventType "team-tourn"]
[EventCountry "FRA"]
[SourceTitle "playchess.com"]
[Source "ChessBase"]
[SourceQuality "1"]
[TimeControl "40/5400+30:1800+30"]

{[%evp 9,79,9,8,7,10,0,0,0,4,4,0,-6,8,0,0,0,11,0,13,0,0,0,0,0,0,0,0,0,0,0,0,0,0,0,11,-9,16,17,23,-11,0,-2,-7,-6,0,-4,-9,-13,-16,-26,-18,-39,-68,-135,-122,-115,-115,-178,-85,-98,-99,-94,-95,-98,-77,-96,-14,-8,-11,-10,0,0]} 1. Nf3 {[%emt 0:01:03]} Nf6 {[%emt 0:00:18]} 2. g3 {[%emt 0:01:07]} c5 {[%emt 0:00:24]} 3. Bg2 {[%emt 0:03:52]} Nc6 {[%emt 0:00:11]} 4. O-O {[%emt 0:01:25]} e5 {[%emt 0:00:10]} 5. e4 {[%emt 0:02:32]} d6 {[%emt 0:00:09]} 6. d3 {[%emt 0:03:33]} g6 {[%emt 0:00:09]} 7. a3 {[%emt 0:04:47]} Bg7 {[%emt 0:00:13]} 8. c4 {[%emt 0:01:42]} O-O {[%emt 0:00:53]} 9. Nc3 {[%emt 0:00:18]} a6 {[%emt 0:00:11]} 10. Rb1 {[%emt 0:02:42]} Rb8 {[%emt 0:00:11]} (10... Nd4 {is interesting.} 11. Bg5 Bg4 12. Nd5 b5) 11. b4 {[%emt 0:00:29]} cxb4 {[%emt 0:00:07]} 12. axb4 {[%emt 0:00:08]} (12. Nd5 {seems wilder.} bxa3 13. Qb3 Bg4 14. Be3) 12... b5 {[%emt 0:00:05]} 13. cxb5 {[%emt 0:04:12]} (13. Bg5 {looks sharper.} bxc4 14. Qa4 Bd7 15. Qxa6 Nxb4 16. Qxd6 Be6 17. Qxd8 Rfxd8 18. dxc4 Bxc4 19. Rfc1) 13... axb5 {[%emt 0:00:06]} 14. h3 {[%emt 0:00:48]} Be6 {[%emt 0:17:42]} 15. Be3 {[%emt 0:06:27]} Qc8 {[%emt 0:09:59]} 16. Ng5 {[%emt 0:07:34]} Bd7 {[%emt 0:00:20]} 17. Qd2 {[%emt 0:01:26]} h6 {[%emt 0:04:54]} 18. Nf3 {[%emt 0:00:15]} Bxh3 {[%emt 0:00:12]} 19. Bxh6 {[%emt 0:00:40]} Bg4 {[%emt 0:01:30]} 20. Be3 {[%emt 0:05:04]} Qd7 {[%emt 0:02:41]} 21. Ng5 {[%emt 0:02:24]} Qd8 {[%emt 0:06:38]} 22. Rfc1 {[%emt 0:12:09][%cal Oc3b5]} Bd7 {[%emt 0:01:37]} (22... Nd4 {is more complex.} 23. Rf1 Nh5 24. Nd5 Bh6) 23. Nf3 {[%emt 0:11:57]} Ng4 {[%emt 0:03:40]} 24. Nd5 {[%emt 0:02:08]} Nxe3 {[%emt 0:01:33]} 25. Qxe3 {[%emt 0:00:27]} Ne7 {[%emt 0:00:23]} 26. Nxe7+ {[%emt 0:01:56]} Qxe7 {[%emt 0:00:10]} 27. Rc7 {[%emt 0:00:05]} Rfc8 {[%emt 0:01:36]} 28. Rbc1 {[%emt 0:02:48]} Qd8 {[%emt 0:03:45]} 29. Qa7 {[%emt 0:03:55]} (29. Rxc8 {simplifies} Rxc8 30. Rxc8 Qxc8 31. Qa7) 29... Ra8 {[%emt 0:06:00]} 30. Qb7 {[%emt 0:02:31]} (30. Rxc8 {simplifies} Rxc8 31. Rxc8 Qxc8 32. Ng5) 30... Rcb8 {[%emt 0:01:20]} 31. Qd5 {[%emt 0:01:11]} (31. Rxd7 $15 Rxb7 32. Rxb7) 31... Be6 $17 {[%emt 0:00:23]} 32. Qc6 {[%emt 0:00:04]} Ra3 {[%emt 0:05:28]} 33. Bf1 {[%emt 0:06:31] [#]} (33. Rb7 $17) 33... Rb3 {[%emt 0:01:49]} (33... Bh6 $1 $19 {[%cal Rh6c1] and Black stays clearly on top.} 34. Rc3 Ra1) 34. Ra1 {[%emt 0:04:49]} Rxb4 {[%emt 0:04:46]} 35. Rca7 {[%emt 0:00:13]} Bf8 {[%emt 0:16:54]} 36. Ra8 {[%emt 0:00:09]} Rc8 {[%emt 0:02:46]} 37. Ng5 {[%emt 0:00:33] [#] And now Nxe6 would win.} Qxg5 {[%emt 0:07:32]} ({Much weaker is} 37... Rxa8 $6 38. Nxe6 Qc8 39. Rxa8 $11 (39. Qxa8 Qxa8 40. Rxa8 fxe6 $11)) (37... Rb2 $1 $17 38. Rxc8 (38. Nxe6 $2 Qf6 $19) 38... Qxc8 39. Qxc8 Bxc8) 38. Rxc8 $11 {[%emt 0:00:05] The position is equal.} Bxc8 {[%emt 0:00:07]} 39. Qxc8 {[%emt 0:00:03]} Ra4 {[%emt 0:00:33]} 40. Rxa4 $1 {[%emt 0:01:12] Weighted Error Value: White=0.10 (very precise) /Black=0.08 (flawless) .  Mistake:       	White=2     	Black=2      Inaccurate:     	White=1     	---        OK:         	White=15    	Black=18     Best:        	---       	Black=3      Strong:       	White=1     	---} 1/2-1/2

[Event "French Top 16-A 2024"]
[Site "Chartres"]
[Date "2024.06.01"]
[Round "3.11"]
[White "Kunin, Vitaly"]
[Black "Bonte, Andrei-Mihai"]
[Result "1/2-1/2"]
[ECO "D46"]
[WhiteElo "2525"]
[BlackElo "2270"]
[Annotator "TA"]
[PlyCount "159"]
[EventDate "2024.06.01"]
[EventType "team-tourn"]
[EventCountry "FRA"]
[SourceTitle "playchess.com"]
[Source "ChessBase"]
[SourceQuality "1"]
[TimeControl "40/5400+30:1800+30"]

{[%evp 20,159,11,2,25,24,38,33,39,30,34,17,20,0,0,0,89,95,68,29,112,110,87,60,98,97,92,97,103,100,112,107,93,94,195,186,199,195,200,196,192,179,219,215,537,70,69,64,54,69,65,62,68,67,70,39,70,70,70,70,70,70,70,70,70,39,39,39,39,39,39,39,40,40,40,40,40,18,39,0,70,70,70,70,70,70,70,70,70,70,70,70,70,70,70,70,70,70,78,8,8,8,8,9,9,9,9,9,66,66,66,9,9,8,8,8,8,8,8,0,0,0,8,8,8,8,8,8,8,8,8,8,8,8,8,8,8,8,8,8,8,8]} 1. Nf3 {[%emt 0:00:07]} d5 {[%emt 0:01:13]} 2. d4 {[%emt 0:01:40]} Nf6 {[%emt 0:00:13]} 3. c4 {[%emt 0:01:03]} e6 {[%emt 0:00:36]} 4. Nc3 {[%emt 0:00:27]} c6 {[%emt 0:00:58]} 5. e3 {[%emt 0:01:29]} Nbd7 {[%emt 0:00:22]} 6. Qc2 {[%emt 0:00:09]} Bd6 {[%emt 0:03:29]} 7. Bd3 {[%emt 0:00:12]} dxc4 {[%emt 0:03:09]} 8. Bxc4 {[%emt 0:00:24]} O-O {[%emt 0:00:23]} 9. O-O {[%emt 0:00:37]} b5 {[%emt 0:03:09]} 10. Bd3 {[%emt 0:00:16]} Bb7 {[%emt 0:00:58]} 11. Rd1 {[%emt 0:01:20][%cal Of3e5]} Qb8 {[%emt 0:07:27]} 12. h3 {[%emt 0:10:36]} h6 {[%emt 0:12:44]} 13. e4 {[%emt 0:02:30] Threatens to win with e5.} e5 {[%emt 0:01:35] White is slightly better.} 14. Be3 {[%emt 0:02:27]} Re8 {[%emt 0:06:39]} 15. Ne2 {[%emt 0:06:32]} exd4 {[%emt 0:15:46]} 16. Nexd4 {[%emt 0:00:49]} a6 $1 {[%emt 0:04:40]} 17. Nf5 {[%emt 0:01:37]} (17. Nxc6 Bxc6 18. Qxc6 Rc8 19. Bxb5 Bc5 (19... Rxc6 20. Bxc6 Bc5 21. e5 $17) 20. Bxc5 Nxc5 $19 (20... Rxc6 $2 21. Bxc6 Nxc5 22. e5 $19)) 17... Bf4 {[%emt 0:07:54]} (17... Bf8 $1 $11 {remains equal.}) 18. Bxf4 $1 $16 {[%emt 0:26:10]} Qxf4 {[%emt 0:00:47]} 19. Bf1 {[%emt 0:02:25] Nd6 is the strong threat.} c5 {[%emt 0:15:24]} (19... Rxe4 $2 20. Nd6 c5 21. Nxb7 $18) (19... Qxe4 $2 20. Qxe4 Rxe4 21. Nd6 $18) (19... Qc7 $11 {keeps the balance.}) 20. Nd6 {[%emt 0:00:38]} Reb8 {[%emt 0:00:22][%cal Rf6e4]} 21. a4 {[%emt 0:01:06]} Bc6 {[%emt 0:09:20][%cal Rf6e4]} 22. axb5 {[%emt 0:02:16]} (22. Ra3 {is more complex.} Nxe4 23. g3 Qxd6 24. Rxd6 Nxd6 25. Nh4) 22... axb5 {[%emt 0:00:02]} 23. Rxa8 {[%emt 0:00:15]} Bxa8 {[%emt 0:00:04]} 24. Bxb5 {[%emt 0:08:25] aiming for Bc4.} Nxe4 {[%emt 0:00:54]} 25. Nxf7 {[%emt 0:03:46]} Rxb5 {[%emt 0:02:57]} 26. Rxd7 {[%emt 0:00:25]} Rb8 {[%emt 0:01:22]} (26... Bc6 $16 {keeps fighting.} 27. Re7 Rb7 28. Rxb7 Bxb7) 27. N7e5 $18 {[%emt 0:01:49]} Ng5 {[%emt 0:00:47]} 28. Nxg5 {[%emt 0:08:30]} ({But not} 28. Qxc5 $6 Nxf3+ 29. gxf3 Re8 $14) 28... Qxg5 {[%emt 0:00:10][%csl Ga8][%cal Rg5g2]} 29. Qc4+ {[%emt 0:02:32]} (29. Qxc5 $2 Qxg2#) 29... Kh7 {[%emt 0:00:07][%csl Ga8][%cal Rg5g2] [#]} 30. Ng4 $1 {[%emt 0:01:29]} (30. Qxc5 $2 Qxg2#) 30... h5 {[%emt 0:01:23]} 31. Qd3+ {[%emt 0:08:25]} Qg6 $2 {[%emt 0:00:33]} (31... Kg8) 32. Ne5 $2 {[%emt 0:05:32]} (32. Nf6+ $18 Kh6 33. Qd2+ Qg5 34. Ng4+ (34. Qxg5+ Kxg5 35. Nd5 Rxb2 $16) 34... hxg4 35. Qd6+ Kh7 36. Qxb8 gxh3 37. Qg3 (37. Qxa8 h2+ 38. Kh1 Qc1+ 39. Kxh2 Qh6+ 40. Kg3 Qg5+ 41. Kf3 Qf5+ 42. Ke3 Qxd7 $16) 37... Qxg3 38. fxg3) 32... Qxd3 $1 $14 {[%emt 0:00:08]} 33. Nxd3 {[%emt 0:00:05][%mdl 4096] Endgame. KRB-KRN} c4 {[%emt 0:00:35]} 34. Ne5 {[%emt 0:00:05]} Rxb2 {[%emt 0:00:28]} 35. Nxc4 {[%emt 0:00:06]} Rb4 {[%emt 0:00:38]} 36. Ne3 {[%emt 0:00:08]} Be4 {[%emt 0:00:28]} 37. Re7 {[%emt 0:01:11]} Rd4 {[%emt 0:00:25]} 38. h4 {[%emt 0:00:41]} Bg6 {[%emt 0:00:27]} 39. g3 {[%emt 0:00:08]} Be4 {[%emt 0:00:27]} 40. Re5 {[%emt 0:00:54] White is more active.} g6 {[%emt 0:00:47]} 41. Re7+ {[%emt 0:30:09]} Kg8 {[%emt 0:03:35]} 42. f4 {[%emt 0:00:00]} Kf8 {[%emt 0:06:13]} 43. Re5 {[%emt 0:00:00]} Kf7 {[%emt 0:00:07]} 44. Kf2 {[%emt 0:00:00]} Ra4 {[%emt 0:00:31]} 45. Ke1 {[%emt 0:00:00]} Bc6 {[%emt 0:05:28]} 46. Rc5 {[%emt 0:00:00]} Bd7 {[%emt 0:00:20]} 47. Nc4 {[%emt 0:00:00]} Kf6 {[%emt 0:02:45]} 48. Kf2 {[%emt 0:00:00]} Ra2+ {[%emt 0:01:08]} 49. Ke3 {[%emt 0:00:00]} Rc2 {[%emt 0:00:42] [#]} (49... Rg2 $11) 50. Nb6 $1 {[%emt 0:00:00]} Bf5 {[%emt 0:00:08]} 51. Nd5+ {[%emt 0:00:00]} Ke6 {[%emt 0:00:49]} 52. Rxc2 {[%emt 0:00:00]} Bxc2 {[%emt 0:00:22] KB-KN} 53. Kd4 {[%emt 0:00:00]} Bb3 {[%emt 0:00:53]} 54. Ne3 {[%emt 0:00:00]} Ba2 {[%emt 0:00:54]} 55. Kc5 {[%emt 0:00:00]} Bb3 {[%emt 0:00:37]} 56. Kc6 {[%emt 0:00:00]} Ba4+ {[%emt 0:01:24]} 57. Kc7 {[%emt 0:00:00]} Bb5 {[%emt 0:00:26]} 58. Kd8 {[%emt 0:00:22]} Kf6 {[%emt 0:03:11] [#]} 59. f5 {[%emt 0:03:47]} Bd3 $11 {[%emt 0:01:52]} 60. fxg6 {[%emt 0:00:18]} Bxg6 {[%emt 0:01:34]} 61. Nd5+ {[%emt 0:00:16]} Ke5 {[%emt 0:02:49]} 62. Nf4 {[%emt 0:00:09]} Bc2 {[%emt 0:00:56]} 63. Nxh5 {[%emt 0:00:21] Strongly threatening Ke7.} Kf5 {[%emt 0:00:48]} ({Black should play} 63... Bd1 $11) 64. Ke7 $14 {[%emt 0:01:13] Black must now prevent Nf6.} Kg4 {[%emt 0:01:00]} 65. Ng7 {[%emt 0:00:15]} ({White should try} 65. Nf6+ $14 Kxg3 66. h5) 65... Bd1 $11 {[%emt 0:01:52] The position is equal.} 66. h5 {[%emt 0:00:32] Intending h6 and mate.} Kg5 $1 {[%emt 0:00:09]} 67. Ke6 {[%emt 0:00:28]} Bg4+ {[%emt 0:01:08]} 68. Ke5 {[%emt 0:00:06]} Bf3 {[%emt 0:00:17]} 69. Ke6 {[%emt 0:04:08]} Bg4+ {[%emt 0:00:10]} 70. Ke5 {[%emt 0:00:23]} Bf3 {[%emt 0:00:06]} 71. Ne6+ {[%emt 0:00:29]} Kxh5 {[%emt 0:00:18]} 72. Kf4 {[%emt 0:00:06]} Bd1 {[%emt 0:00:11]} 73. Ng7+ {[%emt 0:00:11]} Kg6 {[%emt 0:00:07]} 74. Nf5 {[%emt 0:00:04]} Kf6 {[%emt 0:00:08]} 75. Ne3 {[%emt 0:00:08]} Be2 {[%emt 0:00:06]} 76. Ng2 {[%emt 0:00:18]} Bd1 {[%emt 0:00:26]} 77. Nh4 {[%emt 0:00:37]} Be2 {[%emt 0:00:09]} 78. Nf3 {[%emt 0:00:12]} Bxf3 {[%emt 0:00:12]} 79. Kxf3 {[%emt 0:00:07] Kf4 would kill now.} Kf5 {[%emt 0:00:04]} 80. g4+ {[%emt 0:00:06] Black defended with fortune.   Weighted Error Value: White=0.16 (very precise) /Black=0.26 (precise) .  Missed win:     	White=1     	---        Mistake:       	White=2     	Black=6      Inaccurate:     	White=5     	Black=2      OK:         	White=30    	Black=30     Best:        	White=6     	Black=6      Strong:       	White=2     	Black=3} 1/2-1/2

[Event "French Top 16-A 2024"]
[Site "Chartres"]
[Date "2024.06.01"]
[Round "3.12"]
[White "Moussard, Jules"]
[Black "Tregubov, Pavel V."]
[Result "0-1"]
[ECO "A25"]
[WhiteElo "2611"]
[BlackElo "2562"]
[Annotator "TA"]
[PlyCount "136"]
[EventDate "2024.06.01"]
[EventType "team-tourn"]
[EventCountry "FRA"]
[SourceTitle "playchess.com"]
[Source "ChessBase"]
[SourceQuality "1"]
[TimeControl "40/5400+30:1800+30"]

{[%evp 58,136,0,0,35,25,58,37,33,28,31,0,0,0,0,0,0,0,0,0,0,0,0,0,0,-5,-1,-107,-109,-129,-123,-122,-133,-159,-158,-134,-158,-148,-140,-226,-151,-243,-262,-272,-255,-262,-271,-251,-243,-625,-630,-649,-632,-700,-632,-662,-596,-693,-547,-671,-639,-834,-786,-1353,-1339,-1373,-1148,-995,-1017,-1215,-1127,-800,-785,-29965,-29969,-29969,-29942,-29974,-29976,-29956,-9351]} 1. c4 {[%emt 0:01:29]} e5 {[%emt 0:01:36]} 2. g3 {[%emt 0:00:10]} Nf6 {[%emt 0:00:14]} 3. Bg2 {[%emt 0:00:07]} Bc5 {[%emt 0:00:36]} 4. Nc3 {[%emt 0:00:54]} Nc6 {[%emt 0:00:08]} 5. a3 {[%emt 0:00:47]} a6 {[%emt 0:01:02]} 6. e3 {[%emt 0:00:13]} d6 {[%emt 0:01:08] A25: English Opening vs King's Indian with ...Nc6 but without early d3.} 7. Nge2 {[%emt 0:03:01]} O-O {[%emt 0:01:15]} 8. b3 {[%emt 0:02:44]} Ne7 $146 {[%emt 0:05:55]} ({Predecessor:} 8... Ba7 9. Bb2 Bf5 10. d3 Qd7 11. h3 Rab8 12. g4 Bg6 13. Ng3 h6 14. O-O b5 {½-½ Kelly,B (2426)-Miles,A (2584) BCF-ch 87th Millfield 2000 (11)}) 9. d4 {[%emt 0:07:09]} Ba7 {[%emt 0:00:35]} 10. Bb2 {[%emt 0:02:33]} c6 {[%emt 0:00:51]} 11. O-O {[%emt 0:09:11]} Bd7 {[%emt 0:10:47]} 12. h3 {[%emt 0:07:52]} Qc7 {[%emt 0:12:33]} 13. Qc2 {[%emt 0:10:03]} exd4 {[%emt 0:32:02]} 14. Nxd4 {[%emt 0:01:49]} Bxd4 {[%emt 0:00:19]} 15. exd4 {[%emt 0:00:05]} Rad8 {[%emt 0:00:13]} 16. Rfe1 {[%emt 0:01:04]} Rfe8 {[%emt 0:02:12]} 17. Re2 {[%emt 0:07:13]} d5 {[%emt 0:01:40]} 18. Rae1 {[%emt 0:20:03]} Bf5 {[%emt 0:02:35]} 19. Qd2 {[%emt 0:01:08]} Be6 {[%emt 0:03:02]} 20. c5 {[%emt 0:03:13]} Ng6 {[%emt 0:01:14]} 21. b4 {[%emt 0:01:24]} Qd7 {[%emt 0:02:07]} 22. g4 {[%emt 0:05:48]} h5 {[%emt 0:01:37]} 23. f3 {[%emt 0:01:23]} Qc7 {[%emt 0:00:58]} 24. Bc1 {[%emt 0:00:26]} Qg3 {[%emt 0:03:04]} 25. Nd1 {[%emt 0:01:11]} Re7 {[%emt 0:04:53]} 26. Nb2 {[%emt 0:06:01]} Rde8 {[%emt 0:05:14]} 27. Nd3 {[%emt 0:01:04]} hxg4 {[%emt 0:00:30]} 28. hxg4 {[%emt 0:00:43]} Nh7 {[%emt 0:00:24]} 29. Kf1 {[%emt 0:04:45]} Nhf8 {[%emt 0:03:53]} 30. Nf4 {[%emt 0:01:01]} Bd7 {[%emt 0:01:32]} 31. Rxe7 {[%emt 0:00:40]} Rxe7 {[%emt 0:00:05]} 32. Rxe7 {[%emt 0:00:21]} Nxe7 {[%emt 0:00:06]} 33. Qf2 {[%emt 0:00:50]} Qh2 {[%emt 0:00:53]} 34. Qg1 {[%emt 0:00:21]} Qh7 {[%emt 0:00:41]} 35. Qe3 {[%emt 0:00:19]} Qc2 {[%emt 0:00:42]} 36. Ne2 {[%emt 0:00:21]} Neg6 {[%emt 0:00:43]} 37. Kf2 {[%emt 0:00:23]} f5 {[%emt 0:00:57]} 38. gxf5 {[%emt 0:00:53]} Qxf5 {[%emt 0:00:24]} 39. Qg5 {[%emt 0:00:42]} Qc2 {[%emt 0:00:42]} 40. Qd2 {[%emt 0:00:07]} Qf5 {[%emt 0:00:26]} 41. Ng3 {[%emt 0:30:55]} Qf6 {[%emt 0:30:30]} 42. Qe3 {[%emt 0:00:20] [#]} (42. Ne2 $11) 42... Qh4 $1 $17 {[%emt 0:00:00]} 43. f4 {[%emt 0:00:00]} Bh3 {[%emt 0:00:00]} 44. Bxh3 {[%emt 0:00:00]} Qxh3 {[%emt 0:00:00]} 45. Ne2 {[%emt 0:00:00]} Qh2+ {[%emt 0:00:00]} 46. Ke1 {[%emt 0:00:00]} Nh4 {[%emt 0:00:00]} 47. Kd1 {[%emt 0:00:00]} Nf5 {[%emt 0:00:00]} 48. Qd3 {[%emt 0:00:00]} (48. Qe8 $17) 48... Ne6 {[%emt 0:00:00]} 49. Be3 {[%emt 0:00:00]} (49. Qxf5 $17 Qxe2+ 50. Kxe2 Nxd4+ 51. Kf2 Nxf5 52. Kf3) 49... g6 $19 {[%emt 0:00:00]} 50. Kd2 {[%emt 0:00:00]} Kf7 {[%emt 0:00:00]} 51. Kc3 {[%emt 0:00:00]} Qh1 {[%emt 0:00:00]} 52. Kd2 {[%emt 0:00:10]} Qf1 {[%emt 0:00:00]} 53. Ng1 $2 {[%emt 0:01:29]} (53. Nc1 Qg2+ 54. Ne2) 53... Nxe3 $19 {[%emt 0:00:00]} 54. Qxe3 {[%emt 0:00:03]} Qxf4 {[%emt 0:00:00]} 55. Qxf4+ {[%emt 0:01:54]} Nxf4 {[%emt 0:00:00]} 56. Ke3 {[%emt 0:00:04]} g5 {[%emt 0:00:00]} 57. Nf3 {[%emt 0:00:09]} Kf6 {[%emt 0:00:00]} 58. a4 {[%emt 0:00:22]} Kf5 {[%emt 0:02:11]} 59. Ne5 {[%emt 0:00:19]} g4 {[%emt 0:00:36]} 60. Nf7 {[%emt 0:00:36]} g3 {[%emt 0:00:14]} 61. Nh6+ {[%emt 0:03:39]} Kg6 {[%emt 0:02:44]} 62. Ng4 {[%emt 0:00:04]} g2 {[%emt 0:00:23]} 63. Kf2 {[%emt 0:00:03]} Kf5 {[%emt 0:05:34]} 64. Ne5 {[%emt 0:00:56]} Ke4 {[%emt 0:00:00]} 65. Nf7 {[%emt 0:00:04]} Kxd4 {[%emt 0:00:00]} 66. Nd6 {[%emt 0:00:03]} Kc3 {[%emt 0:00:00]} 67. b5 {[%emt 0:00:03]} axb5 {[%emt 0:00:00]} 68. axb5 {[%emt 0:00:02]} Kb4 {[%emt 0:00:00]} 0-1

[Event "French Top 16-A 2024"]
[Site "Chartres"]
[Date "2024.06.01"]
[Round "3.12"]
[White "Willems, Niels"]
[Black "Sankalp Gupta"]
[Result "1/2-1/2"]
[ECO "A17"]
[WhiteElo "2329"]
[BlackElo "2532"]
[Annotator "RC"]
[PlyCount "77"]
[EventDate "2024.06.01"]
[EventType "team-tourn"]
[EventCountry "FRA"]
[SourceTitle "playchess.com"]
[Source "ChessBase"]
[SourceQuality "1"]
[TimeControl "40/5400+30:1800+30"]

1. c4 {[%emt 0:00:02]} e6 {[%emt 0:03:48]} 2. Nc3 {[%emt 0:00:14]} d5 {[%emt 0:00:02]} 3. e3 {[%emt 0:00:05]} Nf6 {[%emt 0:00:10]} 4. Nf3 {[%emt 0:00:06]} Bd6 {[%emt 0:00:21]} 5. b3 {[%emt 0:00:40]} O-O {[%emt 0:00:04]} 6. Bb2 {[%emt 0:00:30]} Re8 {[%emt 0:00:08]} 7. Be2 {[%emt 0:03:32]} a6 {[%emt 0:00:36]} 8. O-O {[%emt 0:00:17]} b6 {[%emt 0:00:44]} 9. cxd5 {[%emt 0:00:44]} exd5 {[%emt 0:00:09]} 10. Rc1 {[%emt 0:01:13]} Bb7 {[%emt 0:00:20]} 11. Re1 {[%emt 0:03:56]} Nbd7 {[%emt 0:00:14]} 12. Bf1 {[%emt 0:05:04]} Rc8 {[%emt 0:01:40]} 13. d3 {[%emt 0:05:03]} c5 {[%emt 0:00:46]} 14. d4 {[%emt 0:03:15]} c4 {[%emt 0:01:40]} 15. a4 {[%emt 0:01:19]} Qc7 {[%emt 0:33:21]} 16. g3 {[%emt 0:03:47]} Qc6 {[%emt 0:17:41]} 17. bxc4 {[%emt 0:04:31]} dxc4 {[%emt 0:00:02]} 18. e4 {[%emt 0:01:07]} b5 {[%emt 0:07:41]} 19. axb5 {[%emt 0:05:54]} axb5 {[%emt 0:00:02]} 20. Bg2 {[%emt 0:03:05]} Bb4 {[%emt 0:01:59]} 21. Nh4 {[%emt 0:25:09]} Qb6 {[%emt 0:02:41]} 22. e5 {[%emt 0:09:06]} Bxc3 {[%emt 0:09:17]} 23. Bxc3 {[%emt 0:00:07]} Nd5 {[%emt 0:00:04]} 24. Nf5 {[%emt 0:04:08]} Nxc3 {[%emt 0:06:18]} 25. Rxc3 {[%emt 0:00:05]} Bxg2 {[%emt 0:00:06]} 26. Kxg2 {[%emt 0:00:33]} Rc7 {[%emt 0:03:22]} 27. Qg4 {[%emt 0:02:51]} g6 {[%emt 0:01:54]} 28. Nd6 {[%emt 0:00:17]} Rf8 {[%emt 0:02:09]} 29. Qe4 {[%emt 0:13:55]} Nf6 {[%emt 0:00:56]} 30. Qf3 {[%emt 0:00:01]} Ne8 {[%emt 0:00:07]} 31. Qd5 {[%emt 0:01:22]} Nxd6 {[%emt 0:04:39]} 32. exd6 {[%emt 0:00:01]} Rd7 {[%emt 0:01:16]} 33. Rb1 {[%emt 0:03:34]} Rb8 {[%emt 0:00:01]} 34. Qc5 {[%emt 0:00:46]} Rxd6 {[%emt 0:01:26]} 35. Rxb5 {[%emt 0:00:19]} Qxb5 {[%emt 0:00:44]} 36. Qxd6 {[%emt 0:00:01]} Rc8 {[%emt 0:00:10]} 37. d5 {[%emt 0:00:38]} Qc5 {[%emt 0:01:02]} 38. Qxc5 {[%emt 0:00:29]} Rxc5 {[%emt 0:00:02]} 39. Kf3 {[%emt 0:00:05]} 1/2-1/2

[Event "French Top 16-A 2024"]
[Site "Chartres"]
[Date "2024.06.01"]
[Round "3.13"]
[White "Hamdouchi, Hicham"]
[Black "Harikrishna, Pentala"]
[Result "1/2-1/2"]
[ECO "A20"]
[WhiteElo "2528"]
[BlackElo "2700"]
[Annotator "TA"]
[PlyCount "98"]
[EventDate "2024.06.01"]
[EventType "team-tourn"]
[EventCountry "FRA"]
[SourceTitle "playchess.com"]
[Source "ChessBase"]
[SourceQuality "1"]
[TimeControl "40/5400+30:1800+30"]

{[%evp 9,98,0,0,-10,-7,-2,-6,-12,-8,-22,-19,-18,8,0,0,0,0,0,0,-6,8,14,7,0,13,4,39,17,14,12,18,21,12,9,18,3,3,4,4,4,7,8,12,0,12,0,0,0,0,0,0,0,0,0,0,0,0,0,0,0,0,0,0,0,0,-8,-8,-8,-8,-7,-6,-6,0,-5,0,0,0,0,0,0,0,0,0,0,0,0,0,0,0,0,0]} 1. c4 {[%emt 0:00:04]} e5 {[%emt 0:01:08]} 2. g3 {[%emt 0:00:24]} c6 {[%emt 0:01:29]} 3. d4 {[%emt 0:05:01]} Bb4+ {[%emt 0:01:54]} 4. Nd2 {[%emt 0:02:48]} exd4 {[%emt 0:03:39]} 5. Ngf3 {[%emt 0:05:06]} d5 {[%emt 0:13:53]} 6. cxd5 {[%emt 0:01:18]} Qxd5 {[%emt 0:00:17]} 7. Bg2 {[%emt 0:00:07]} Nf6 {[%emt 0:00:26]} 8. O-O {[%emt 0:00:20]} O-O {[%emt 0:00:44]} 9. Nb3 {[%emt 0:06:45] [#]} d3 $1 {[%emt 0:00:45]} 10. exd3 {[%emt 0:02:22][%cal Be2d3,Bd3e4,Be4e5][%mdl 32]} Qh5 {[%emt 0:02:41]} 11. a3 {[%emt 0:07:15]} Bd6 {[%emt 0:02:55]} 12. Ng5 {[%emt 0:01:10]} Qxd1 {[%emt 0:04:16]} 13. Rxd1 {[%emt 0:00:05]} Bc7 {[%emt 0:04:42]} 14. Ne4 {[%emt 0:06:37]} Nxe4 {[%emt 0:13:27]} 15. dxe4 {[%emt 0:00:21]} Bb6 {[%emt 0:00:08] Prevents Nc5} 16. h3 {[%emt 0:04:33]} Nd7 {[%emt 0:05:05]} 17. Bf4 {[%emt 0:02:51]} Nf6 {[%emt 0:01:41]} 18. Bd6 {[%emt 0:04:04]} Rd8 {[%emt 0:03:09] [#] White must now prevent ...Be6. The position is equal.} 19. e5 {[%emt 0:04:35]} Be6 {[%emt 0:12:33]} 20. Nd4 {[%emt 0:02:48]} Bxd4 {[%emt 0:02:16]} 21. Rxd4 {[%emt 0:00:08]} Ne8 {[%emt 0:00:06]} 22. Rad1 {[%emt 0:24:55]} Nxd6 {[%emt 0:00:36]} 23. Rxd6 {[%emt 0:00:13]} Rxd6 {[%emt 0:00:48]} 24. Rxd6 $11 {[%emt 0:00:11][%mdl 4096] Endgame. KRB-KRB} Kf8 {[%emt 0:01:22]} 25. f4 {[%emt 0:01:56]} h5 {[%emt 0:02:14]} 26. Bf3 {[%emt 0:01:08]} g6 {[%emt 0:04:31]} 27. g4 {[%emt 0:04:09]} hxg4 {[%emt 0:00:41]} 28. hxg4 {[%emt 0:00:08]} Ke7 {[%emt 0:00:34]} 29. Rd4 {[%emt 0:00:32]} a5 {[%emt 0:01:58]} 30. Kf2 {[%emt 0:01:49]} Ra6 {[%emt 0:00:21]} 31. Be2 {[%emt 0:01:56]} Rb6 {[%emt 0:06:01]} 32. b4 {[%emt 0:00:18]} c5 $1 {[%emt 0:00:07]} 33. bxc5 {[%emt 0:02:53]} Rc6 {[%emt 0:00:09]} 34. Rd6 {[%emt 0:02:12] And now Rxc6 would win.} Rxc5 {[%emt 0:00:08]} 35. Rb6 {[%emt 0:00:02]} Bc8 {[%emt 0:02:04]} 36. a4 {[%emt 0:05:01]} g5 {[%emt 0:05:22]} 37. fxg5 {[%emt 0:00:58]} Rxe5 {[%emt 0:00:19]} 38. g6 {[%emt 0:00:15]} fxg6 {[%emt 0:00:55]} 39. Rxg6 {[%emt 0:00:08]} Re4 {[%emt 0:00:09]} 40. Rg7+ {[%emt 0:02:26]} Kd6 {[%emt 0:01:12]} 41. Bd1 {[%emt 0:03:59]} Bd7 {[%emt 0:08:01]} 42. g5 {[%emt 0:00:43]} b6 {[%emt 0:09:22]} 43. g6 {[%emt 0:02:13]} Bxa4 {[%emt 0:00:42]} 44. Bxa4 {[%emt 0:01:02]} Rxa4 {[%emt 0:00:28] KR-KR} 45. Kf3 {[%emt 0:00:16][%cal Og7d7] Wards off Rg4. Rd7+! is the strong threat.} Ra3+ {[%emt 0:02:23]} 46. Kf2 {[%emt 0:00:35][%cal Og7d7] Hoping for Rd7+!} Ra2+ {[%emt 0:02:35]} 47. Kf3 {[%emt 0:00:22][%cal Og7d7] Rd7+! would now be deadly.} Ra3+ {[%emt 0:00:15]} 48. Kf2 {[%emt 0:00:06][%cal Og7d7] Strongly threatening Rd7+!} Rc3 {[%emt 0:01:15]} 49. Rb7 {[%emt 0:02:45]} Rc8 {[%emt 0:00:24] An even fight not without its subleties.   Weighted Error Value: White=0.03 (flawless) /Black=0.03 (flawless) .  Inaccurate:     	---       	Black=2      OK:         	White=21    	Black=25     Strong:       	---       	Black=1} 1/2-1/2